bitfinex/quotes_SOLUSD_20250129
["timestamp","ask_amount","ask_price","bid_price","bid_amount"]
[1738174218490,0.03,228.75,228.64,23.776884]
[1738174218699,0.03,228.75,228.65,0.65578045]
[1738174218996,0.03,228.75,228.66,20.0]
[1738174219202,0.03,228.75,228.68,4.3729]
[1738174219509,0.03,228.75,228.69,0.65577437]
[1738174219702,0.03,228.75,228.69,3.89577437]
[1738174220702,20.31211625,228.72,228.64,0.65587342]
[1738174220914,0.8171998,228.71,228.65,3.24]
[1738174221803,20.31211625,228.72,228.66,0.6559266]
[1738174221999,0.8171998,228.71,228.65,3.24]
[1738174222237,20.31211625,228.72,228.65,3.24]
[1738174222436,0.8171998,228.71,228.65,3.24]
[1738174222800,0.8171998,228.71,228.61,0.65596215]
[1738174222801,20.28211625,228.68,228.61,0.65596215]
[1738174223110,2.5663998,228.67,228.61,3.24]
[1738174223318,20.28211625,228.64,228.61,3.24]
[1738174223506,0.8171998,228.63,228.61,3.24]
[1738174223710,0.12549,228.64,228.61,3.24]
[1738174224007,21.09931605,228.68,228.61,3.24]
[1738174224208,20.28211625,228.64,228.61,3.24]
[1738174224506,0.8171998,228.63,228.55,4.4383]
[1738174224716,20.40760625,228.62,228.55,0.063]
[1738174224923,0.8171998,228.61,228.55,0.063]
[1738174225118,0.12549,228.6,228.55,0.063]
[1738174225302,20.40760625,228.58,228.55,0.063]
[1738174225501,0.8171998,228.57,228.55,0.063]
[1738174226327,20.28211625,228.58,228.55,0.063]
[1738174226527,0.12549,228.58,228.55,0.063]
[1738174226831,0.8171998,228.57,228.55,0.063]
[1738174227016,20.40760625,228.58,228.55,0.063]
[1738174227217,0.8171998,228.59,228.55,0.063]
[1738174227414,0.8171998,228.61,228.55,0.063]
[1738174227611,20.0,228.59,228.55,0.063]
[1738174227809,0.8171998,228.61,228.55,0.71927166]
[1738174228001,0.8171998,228.61,228.55,4.4383]
[1738174228727,20.40760625,228.62,228.55,0.063]
[1738174228917,0.8171998,228.61,228.55,0.063]
[1738174229240,1.7498,228.59,228.55,0.063]
[1738174229532,0.8171998,228.58,228.55,0.063]
[1738174229726,21.09931605,228.58,228.55,0.063]
[1738174230714,20.28211625,228.56,228.55,0.063]
[1738174231617,22.15760625,228.56,228.55,0.063]
[1738174232311,1.0681798,228.59,228.55,0.063]
[1738174232312,22.03211625,228.58,228.55,0.063]
[1738174232518,1.7498,228.59,228.55,0.063]
[1738174232720,0.8171998,228.58,228.55,0.063]
[1738174233020,0.12549,228.61,228.55,0.063]
[1738174233204,0.8171998,228.61,228.55,4.4384]
[1738174233601,0.8171998,228.63,228.56,0.65622587]
[1738174233805,0.8171998,228.66,228.56,0.65622587]
[1738174234103,0.03,228.58,228.56,0.65622587]
[1738174235129,0.03,228.58,228.57,4.375]
[1738174236036,0.03,228.58,228.56,0.65622587]
[1738174236237,0.03,228.58,228.55,0.063]
[1738174236927,0.03,228.58,228.56,0.65622944]
[1738174237248,0.03,228.58,228.57,4.375]
[1738174238215,0.03,228.58,228.57,5.03106379]
[1738174238749,0.03,228.58,228.55,5.09428499]
[1738174238911,0.03,228.58,228.55,4.4382]
[1738174239308,0.03,228.58,228.55,0.063]
[1738174239617,0.03,228.58,228.55,4.4383]
[1738174239818,0.03,228.58,228.55,0.063]
[1738174240231,0.03,228.58,228.55,4.4383]
[1738174240841,0.03,228.58,228.55,0.063]
[1738174241340,0.8471998,228.58,228.55,0.063]
[1738174242615,20.28211625,228.57,228.55,0.063]
[1738174242841,0.8171998,228.56,228.55,0.063]
[1738174243046,0.03,228.58,228.55,4.4383]
[1738174243536,0.03,228.58,228.56,0.65620439]
[1738174245045,0.03,228.58,228.57,20.0]
[1738174245215,0.03,228.58,228.57,24.375]
[1738174246444,0.03,228.58,228.57,4.375]
[1738174253357,40.28211625,228.69,228.58,23.776884]
[1738174253654,40.28211625,228.69,228.57,39.214874]
[1738174253655,0.03,228.72,228.6,20.0]
[1738174253826,0.8471998,228.72,228.61,3.85590346]
[1738174254026,20.28211625,228.69,228.61,3.85590346]
[1738174254549,0.8171998,228.68,228.61,3.2]
[1738174254755,20.28211625,228.63,228.54,6.535]
[1738174254920,20.28211625,228.61,228.55,0.71920355]
[1738174255122,20.28211625,228.61,228.55,0.063]
[1738174255356,20.28211625,228.57,228.55,0.063]
[1738174255533,1.1936698,228.56,228.55,0.063]
[1738174256620,1.3191598,228.56,228.55,0.063]
[1738174256825,0.12549,228.52,228.43,3.2]
[1738174257117,21.09931605,228.51,228.43,0.65659021]
[1738174257856,20.28211625,228.58,228.43,0.65659021]
[1738174257857,20.28211625,228.53,228.43,5.03419021]
[1738174258146,21.09931605,228.53,228.43,5.03419021]
[1738174259146,20.28211625,228.51,228.43,0.65659021]
[1738174259350,0.8171998,228.5,228.43,0.65659021]
[1738174259856,0.8171998,228.5,228.42,51.98]
[1738174259857,20.28211625,228.49,228.42,51.98]
[1738174260149,0.8171998,228.48,228.42,51.98]
[1738174260655,20.28211625,228.47,228.42,51.98]
[1738174260862,0.8171998,228.48,228.42,51.98]
[1738174261420,20.28211625,228.51,228.43,0.65660998]
[1738174261642,20.28211625,228.51,228.42,56.3578]
[1738174261643,20.28211625,228.47,228.42,51.98]
[1738174261846,20.28211625,228.49,228.42,51.98]
[1738174262025,20.28211625,228.53,228.43,0.65666053]
[1738174262225,0.8171998,228.52,228.43,0.65666053]
[1738174262444,20.28211625,228.51,228.42,51.98]
[1738174262644,20.28211625,228.47,228.42,51.98]
[1738174262862,20.28211625,228.45,228.38,0.65652715]
[1738174263041,0.8171998,228.44,228.37,6.3799]
[1738174263352,0.8171998,228.44,228.36,0.063]
[1738174263353,20.28211625,228.39,228.36,0.063]
[1738174263558,0.8171998,228.38,228.36,0.063]
[1738174263939,41.78407625,228.37,228.36,0.063]
[1738174264259,85.8430765,228.37,228.36,0.063]
[1738174264637,66.37816005,228.37,228.36,0.063]
[1738174264834,66.37816005,228.37,228.32,0.063]
[1738174264835,20.0,228.33,228.32,0.063]
[1738174265038,41.60127605,228.33,228.32,0.063]
[1738174266050,41.35029605,228.33,228.32,0.063]
[1738174266359,65.37816005,228.33,228.32,0.063]
[1738174266837,41.60127605,228.33,228.32,0.063]
[1738174267241,66.37816005,228.33,228.32,0.063]
[1738174268143,65.37816005,228.33,228.32,0.063]
[1738174268454,41.60127605,228.33,228.32,0.063]
[1738174269135,41.09931605,228.33,228.32,0.063]
[1738174269335,21.09931605,228.33,228.32,0.063]
[1738174269537,20.28211625,228.33,228.32,0.063]
[1738174269765,20.28211625,228.35,228.32,0.063]
[1738174269937,20.28211625,228.39,228.32,4.4427]
[1738174270141,21.09931605,228.38,228.32,4.4427]
[1738174272042,0.8171998,228.41,228.33,0.65689995]
[1738174272237,0.8171998,228.41,228.33,7.25079995]
[1738174273563,20.28211625,228.39,228.33,6.5939]
[1738174273864,20.28211625,228.36,228.32,0.063]
[1738174274168,0.8171998,228.35,228.32,0.063]
[1738174274338,20.28211625,228.36,228.32,0.063]
[1738174274660,20.28211625,228.39,228.32,4.4427]
[1738174274834,21.09931605,228.41,228.33,0.65685178]
[1738174275236,20.28211625,228.43,228.33,0.65685178]
[1738174275460,20.28211625,228.45,228.34,23.776884]
[1738174275645,21.09931605,228.47,228.35,5.03589785]
[1738174275847,21.09931605,228.47,228.36,23.776884]
[1738174275848,0.8171998,228.47,228.36,23.776884]
[1738174276055,20.28211625,228.47,228.37,0.65661608]
[1738174276249,20.28211625,228.47,228.37,3.87661608]
[1738174276250,0.8171998,228.46,228.37,3.87661608]
[1738174276766,20.28211625,228.45,228.37,3.87661608]
[1738174277075,20.28211625,228.43,228.37,3.22]
[1738174277644,20.28211625,228.43,228.37,7.5986]
[1738174277849,20.28211625,228.43,228.37,3.22]
[1738174278061,0.8171998,228.42,228.37,3.22]
[1738174278665,20.28211625,228.46,228.38,0.6567755]
[1738174278866,0.8171998,228.45,228.38,0.6567755]
[1738174279036,20.28211625,228.44,228.37,7.5988]
[1738174279340,0.8171998,228.43,228.37,7.5988]
[1738174279538,20.28211625,228.44,228.37,7.5988]
[1738174279759,20.28211625,228.44,228.38,0.65671768]
[1738174280150,20.28211625,228.46,228.38,0.65671768]
[1738174280357,21.09931605,228.5,228.39,6.0381]
[1738174280559,20.28211625,228.52,228.4,0.65653509]
[1738174280764,0.8171998,228.51,228.4,0.65653509]
[1738174281069,20.28211625,228.52,228.4,0.65653509]
[1738174281569,20.28211625,228.52,228.42,15.3226]
[1738174281760,21.09931605,228.54,228.43,0.65644157]
[1738174282644,0.03,228.52,228.43,0.65644157]
[1738174282973,20.28211625,228.5,228.44,4.3775]
[1738174283672,0.8171998,228.49,228.44,4.3775]
[1738174283968,20.28211625,228.5,228.44,4.3775]
[1738174284174,20.28211625,228.5,228.45,0.65652762]
[1738174284545,20.28211625,228.5,228.44,4.3775]
[1738174284941,20.28211625,228.46,228.42,4.3777]
[1738174285276,1.7803,228.52,228.39,6.0381]
[1738174285277,20.28211625,228.44,228.39,6.0381]
[1738174285461,20.28211625,228.44,228.4,0.65667049]
[1738174285978,20.28211625,228.48,228.4,0.65667049]
[1738174286278,20.28211625,228.46,228.41,4.378]
[1738174286650,20.28211625,228.46,228.39,9.2381]
[1738174286651,0.8171998,228.45,228.39,6.0381]
[1738174286870,20.50196,228.49,228.36,1.6893]
[1738174286871,20.28211625,228.4,228.36,1.6893]
[1738174287368,20.28211625,228.4,228.36,6.0682]
[1738174287748,20.28211625,228.44,228.37,0.65675649]
[1738174287965,20.28211625,228.47,228.37,0.65675649]
[1738174288161,20.28211625,228.45,228.38,4.3786]
[1738174288446,20.28211625,228.39,228.36,0.063]
[1738174288647,20.28211625,228.37,228.36,0.063]
[1738174292358,22.03361625,228.37,228.36,0.063]
[1738174293479,22.28459625,228.37,228.36,0.063]
[1738174293651,20.0,228.34,228.32,0.063]
[1738174293852,21.35029605,228.33,228.32,0.063]
[1738174294266,23.35307605,228.33,228.32,0.063]
[1738174296214,47.12996005,228.33,228.32,0.063]
[1738174296384,20.28211625,228.23,228.2,1.578]
[1738174296887,1.3191598,228.29,228.18,0.65730174]
[1738174296888,20.28211625,228.21,228.18,0.65730174]
[1738174297367,20.28211625,228.23,228.18,0.65730174]
[1738174298366,20.28211625,228.23,228.19,4.3823]
[1738174298562,20.28211625,228.21,228.17,6.3283]
[1738174298779,20.28211625,228.19,228.17,6.3283]
[1738174299285,20.28211625,228.21,228.16,4.4458]
[1738174299664,20.28211625,228.21,228.16,0.063]
[1738174299864,20.28211625,228.19,228.16,0.063]
[1738174300058,20.28211625,228.17,228.16,0.063]
[1738174301159,21.09931605,228.17,228.16,0.063]
[1738174301486,20.28211625,228.17,228.16,0.063]
[1738174301678,22.85231605,228.17,228.16,0.063]
[1738174301868,47.13116005,228.17,228.16,0.063]
[1738174302267,23.35427605,228.17,228.16,0.063]
[1738174302587,21.09931605,228.17,228.16,0.063]
[1738174302789,23.35427605,228.17,228.16,0.063]
[1738174303567,43.6363923,228.17,228.16,0.063]
[1738174303792,44.6363923,228.17,228.16,0.063]
[1738174304280,45.278844,228.14,228.13,0.063]
[1738174304487,92.7967763,228.14,228.09,0.063]
[1738174304689,44.30998025,228.1,228.09,0.063]
[1738174304994,21.09931605,228.1,228.09,0.063]
[1738174305397,21.22480605,228.1,228.09,0.063]
[1738174305572,21.09931605,228.1,228.09,0.063]
[1738174305768,20.28211625,228.1,228.09,0.063]
[1738174305970,20.65858625,228.1,228.09,0.063]
[1738174306261,44.153354,228.07,228.06,0.063]
[1738174306478,41.09931605,228.07,228.06,0.063]
[1738174306684,40.28211625,228.07,228.06,0.063]
[1738174306861,41.09931605,228.07,228.06,0.063]
[1738174308399,20.28211625,228.07,228.06,0.063]
[1738174308578,4.3826,228.18,228.06,0.063]
[1738174308579,20.28211625,228.09,228.06,0.063]
[1738174308891,20.28211625,228.08,228.06,4.4478]
[1738174309676,20.28211625,228.14,228.06,4.4478]
[1738174309677,20.28211625,228.12,228.07,7.11912982]
[1738174310384,20.28211625,228.12,228.08,4.3844]
[1738174311216,20.28211625,228.12,228.07,6.4615]
[1738174311492,20.28211625,228.09,228.07,6.4615]
[1738174311868,20.28211625,228.11,228.07,6.4615]
[1738174312071,20.28211625,228.11,228.07,10.846]
[1738174312583,20.28211625,228.11,228.07,11.5035908]
[1738174313090,20.28211625,228.08,228.07,6.4615]
[1738174313304,20.28211625,228.08,228.06,0.063]
[1738174313873,0.8171998,228.13,228.06,5.10526131]
[1738174313874,20.28211625,228.13,228.06,5.10526131]
[1738174315799,20.28211625,228.15,228.06,16.06726131]
[1738174316285,20.28211625,228.15,228.07,23.776884]
[1738174316479,20.28211625,228.15,228.08,0.65744085]
[1738174316696,20.28211625,228.09,228.06,0.063]
[1738174316998,21.09931605,228.14,228.06,0.063]
[1738174316999,20.28211625,228.07,228.06,0.063]
[1738174318400,22.03591625,228.07,228.06,0.063]
[1738174318767,20.28211625,228.07,228.06,0.063]
[1738174320099,22.03591625,228.07,228.06,0.063]
[1738174321222,67.2885863,228.07,228.06,0.063]
[1738174321365,23.22958605,228.07,228.06,0.063]
[1738174321571,22.85311605,228.07,228.06,0.063]
[1738174322284,22.03591625,228.07,228.06,0.063]
[1738174322494,44.5117023,228.07,228.06,0.0001]
[1738174322696,20.12549,228.03,227.95,0.063]
[1738174322901,20.28211625,227.96,227.95,0.063]
[1738174326184,20.28211625,227.98,227.95,4.4499]
[1738174326386,20.28211625,227.98,227.95,11.1051]
[1738174326880,20.28211625,227.98,227.96,0.65802107]
[1738174327301,20.28211625,227.98,227.95,11.1051]
[1738174327489,20.28211625,227.98,227.95,6.7182]
[1738174327696,20.28211625,227.96,227.95,6.7182]
[1738174329083,20.28211625,227.98,227.95,0.063]
[1738174329386,20.28211625,228.0,227.96,0.65795255]
[1738174329589,20.28211625,228.02,227.96,0.65795255]
[1738174330023,20.28211625,228.03,227.96,0.65795255]
[1738174330227,20.28211625,227.97,227.95,0.063]
[1738174330407,20.28211625,227.97,227.95,4.4499]
[1738174330727,20.28211625,228.01,227.95,0.063]
[1738174330915,20.28211625,228.01,227.96,0.65793808]
[1738174331092,20.28211625,227.99,227.95,0.063]
[1738174331490,20.28211625,227.99,227.95,4.4499]
[1738174331911,20.28211625,228.01,227.96,0.65796436]
[1738174332220,20.28211625,228.03,227.96,0.65796436]
[1738174333021,20.28211625,228.03,227.97,4.3865]
[1738174333390,20.28211625,228.03,227.98,0.65787401]
[1738174334092,20.28211625,228.05,227.98,0.65787401]
[1738174334429,0.03,228.07,227.99,23.776884]
[1738174334736,0.03,228.07,228.0,0.65763926]
[1738174334894,20.28211625,228.05,228.0,0.65763926]
[1738174335224,20.28211625,228.05,228.01,4.3857]
[1738174335822,20.28211625,228.05,228.0,5.04353926]
[1738174336324,20.28211625,228.03,227.98,0.65779259]
[1738174337599,20.28211625,228.01,227.96,0.063]
[1738174337805,20.28211625,227.97,227.96,0.063]
[1738174340433,22.85391605,227.97,227.96,0.063]
[1738174340729,20.28211625,227.97,227.96,0.063]
[1738174341429,21.09931605,227.97,227.96,0.063]
[1738174341615,22.03671625,227.97,227.96,0.063]
[1738174342135,22.41318625,227.97,227.96,0.063]
[1738174342321,46.19007025,227.97,227.96,0.063]
[1738174342916,47.00727005,227.97,227.96,0.063]
[1738174345123,20.28211625,227.97,227.96,0.063]
[1738174346642,12.70292431,227.97,227.96,0.063]
[1738174347156,12.70292431,228.01,227.96,4.4497]
[1738174347445,12.70292431,228.01,227.97,0.65789158]
[1738174347608,12.70292431,228.01,227.96,5.10754895]
[1738174348622,0.8471998,228.06,227.96,5.10754895]
[1738174348623,20.31484484,228.03,227.96,5.10754895]
[1738174348852,20.31484484,228.01,227.96,5.10754895]
[1738174350045,20.31484484,228.03,227.96,5.10754895]
[1738174350230,20.31484484,228.05,227.97,23.776884]
[1738174350426,0.03,228.06,227.98,0.65777757]
[1738174350427,20.31484484,228.03,227.98,0.65777757]
[1738174351141,20.31484484,228.01,227.98,0.65777757]
[1738174351442,20.31484484,228.01,227.97,0.65776739]
[1738174351827,20.31484484,228.03,227.97,24.43465139]
[1738174352021,20.31484484,228.03,227.98,4.3863]
[1738174352421,20.31484484,228.03,227.99,0.65782657]
[1738174352824,20.31484484,228.05,227.99,0.65782657]
[1738174353237,20.31484484,228.03,227.99,0.65782657]
[1738174353717,0.03,228.06,227.96,0.063]
[1738174353718,20.31484484,228.01,227.96,5.10736881]
[1738174354021,20.31484484,227.99,227.96,5.10736881]
[1738174354418,20.31484484,227.97,227.96,0.063]
[1738174357027,21.13204464,227.97,227.96,0.063]
[1738174357528,22.06944484,227.97,227.96,0.063]
[1738174359943,20.31484484,227.97,227.96,0.063]
[1738174360841,22.88664464,227.97,227.96,0.063]
[1738174361042,20.31484484,227.97,227.96,0.063]
[1738174361341,20.31484484,228.03,227.96,5.10766581]
[1738174361521,20.31484484,228.05,227.96,19.23446581]
[1738174362317,20.31484484,228.03,227.96,8.26766581]
[1738174362517,20.31484484,228.05,227.96,8.26766581]
[1738174362957,0.03,228.06,227.99,0.25098]
[1738174363120,0.03,228.06,228.02,15.3494]
[1738174363327,0.03,228.06,228.03,0.65757231]
[1738174364752,0.03,228.06,228.04,4.3851]
[1738174364956,0.03,228.06,228.05,0.65759862]
[1738174365155,0.03,228.06,228.03,0.65759862]
[1738174365328,20.31484484,228.05,228.01,3.8177125]
[1738174365529,20.31484484,228.03,228.01,3.16]
[1738174370028,20.31484484,228.05,228.01,7.5457]
[1738174370441,20.31484484,228.05,228.02,0.65775393]
[1738174370629,20.31484484,228.05,228.01,3.16]
[1738174370833,20.31484484,228.03,228.01,3.16]
[1738174371533,20.31484484,228.05,228.01,7.5457]
[1738174372937,20.31484484,228.05,228.01,3.16]
[1738174373141,20.31484484,228.03,228.01,3.16]
[1738174373536,20.31484484,228.03,227.99,0.063]
[1738174373762,20.31484484,228.01,227.99,0.063]
[1738174374048,20.31484484,228.03,227.99,5.10684568]
[1738174375558,20.31484484,228.03,227.99,0.063]
[1738174376154,20.31484484,228.03,227.99,4.449]
[1738174376359,20.31484484,228.05,228.0,0.65780553]
[1738174376561,12.69562564,228.05,228.0,0.65780553]
[1738174377655,0.03,228.06,228.0,5.04350553]
[1738174379368,12.69562564,228.05,228.0,5.04350553]
[1738174379573,12.69562564,228.03,227.99,0.063]
[1738174380035,12.69562564,228.03,227.99,4.449]
[1738174380237,12.69562564,228.05,228.0,0.65780867]
[1738174380441,0.03,228.06,228.0,0.65780867]
[1738174381139,0.03,228.06,228.01,15.3501]
[1738174381339,0.03,228.06,228.02,0.65761687]
[1738174382169,0.03,228.06,228.03,24.027864]
[1738174382461,0.03,228.06,228.04,0.65755649]
[1738174383269,0.03,228.06,228.05,4.385]
[1738174383497,0.03,228.06,228.05,28.412864]
[1738174383703,0.0001,228.06,228.05,58.663844]
[1738174384065,0.0001,228.06,228.05,28.412864]
[1738174384293,0.0001,228.06,228.05,4.385]
[1738174384994,0.0001,228.06,228.05,58.663844]
[1738174385491,0.0001,228.06,228.05,5.04250778]
[1738174385863,0.0001,228.06,228.05,5.29348778]
[1738174386062,0.0001,228.06,228.05,5.04250778]
[1738174386658,0.0001,228.06,228.05,4.385]
[1738174386893,0.0001,228.06,228.05,5.04260022]
[1738174387266,0.0001,228.06,228.05,29.07046422]
[1738174387688,0.0001,228.06,228.05,29.32144422]
[1738174387891,0.03,228.09,228.08,20.0]
[1738174388199,0.03,228.09,228.08,20.65741786]
[1738174388693,0.03,228.09,228.08,6.79541786]
[1738174388879,0.03,228.09,228.07,0.65754195]
[1738174389075,0.03,228.09,228.05,5.04259482]
[1738174390492,0.03,228.09,228.02,0.65768071]
[1738174390799,0.8471998,228.09,228.02,0.65768071]
[1738174391101,0.8471998,228.09,228.0,4.4488]
[1738174391102,0.8471998,228.09,228.0,5.10663742]
[1738174391274,1.7537,228.08,228.0,5.10663742]
[1738174391603,0.8171998,228.07,228.0,5.10663742]
[1738174391783,20.03,228.09,228.0,5.10663742]
[1738174392708,0.03,228.09,228.0,16.07153742]
[1738174392900,0.03,228.09,228.01,24.027864]
[1738174393209,0.03,228.09,228.02,0.65761196]
[1738174394006,0.03,228.09,228.03,4.3853]
[1738174394307,0.03,228.09,228.04,0.72066435]
[1738174395507,0.03,228.09,228.04,5.10576435]
[1738174395796,0.8471998,228.09,228.04,0.063]
[1738174396174,12.69562564,228.08,228.04,0.063]
[1738174396377,0.8471998,228.09,228.04,4.4481]
[1738174396378,0.03,228.09,228.04,4.4481]
[1738174396601,0.8471998,228.09,228.04,0.063]
[1738174397301,12.69562564,228.06,228.04,0.063]
[1738174397602,34.44942564,228.08,228.04,0.063]
[1738174397900,0.8171998,228.07,228.04,0.063]
[1738174398278,12.69562564,228.06,228.04,0.063]
[1738174398598,0.8171998,228.05,228.04,0.063]
[1738174399582,2.5711998,228.05,228.04,0.063]
[1738174400085,0.8171998,228.05,228.04,0.063]
[1738174400285,0.8171998,228.07,228.04,0.063]
[1738174400907,12.69562564,228.06,228.04,0.063]
[1738174401085,0.8171998,228.05,228.04,0.063]
[1738174401814,2.5711998,228.05,228.04,0.063]
[1738174402310,0.8171998,228.07,228.04,0.063]
[1738174402480,0.03,228.09,228.04,0.063]
[1738174402677,0.03,228.09,228.04,5.1058358]
[1738174405485,0.03,228.09,228.04,6.7210358]
[1738174405814,0.03,228.09,228.05,24.027864]
[1738174406107,0.03,228.09,228.06,0.65745183]
[1738174406407,0.03,228.09,228.07,3.16]
[1738174406608,0.03,228.09,228.08,5.04185211]
[1738174408197,0.03,228.09,228.07,3.81753544]
[1738174408589,0.03,228.09,228.07,8.20213544]
[1738174410715,0.03,228.09,228.08,24.027864]
[1738174410918,0.03,228.09,228.08,24.278844]
[1738174411091,0.8171998,228.25,228.13,20.0]
[1738174411417,12.69562564,228.24,228.14,0.65730019]
[1738174411623,0.8171998,228.23,228.14,0.65730019]
[1738174412319,2.5697998,228.23,228.15,4.383]
[1738174412512,15.26542544,228.23,228.15,5.04035229]
[1738174413322,2.5697998,228.23,228.15,5.04035229]
[1738174413618,0.8171998,228.23,228.15,5.04035229]
[1738174413925,0.8171998,228.28,228.16,24.027864]
[1738174414221,0.03,228.29,228.18,24.027864]
[1738174414518,0.03,228.29,228.19,3.81713746]
[1738174414698,13.54282544,228.29,228.19,3.81713746]
[1738174414902,12.69562564,228.28,228.19,3.81713746]
[1738174415103,0.8171998,228.27,228.19,3.81713746]
[1738174415713,13.51282544,228.27,228.19,8.19933746]
[1738174416898,2.5694998,228.27,228.19,8.19933746]
[1738174417226,12.69562564,228.2,228.14,6.4156]
[1738174417518,12.69562564,228.19,228.14,6.4156]
[1738174418091,12.69562564,228.18,228.14,6.4156]
[1738174418295,12.69562564,228.2,228.14,6.4156]
[1738174418496,12.69562564,228.21,228.14,6.4156]
[1738174418708,13.51282544,228.22,228.14,10.7988]
[1738174418912,12.69562564,228.24,228.15,0.65737289]
[1738174419107,0.8171998,228.24,228.15,0.65737289]
[1738174419503,0.03,228.27,228.19,0.50196]
[1738174419711,0.03,228.27,228.22,2.6019]
[1738174419919,0.03,228.27,228.26,20.0]
[1738174420123,0.03,228.27,228.26,29.5476]
[1738174420311,0.03,228.27,228.26,57.956364]
[1738174420512,0.03,228.31,228.29,20.50196]
[1738174420698,6.83204387,228.37,228.35,20.0]
[1738174420898,6.83204387,228.37,228.36,0.65670935]
[1738174421708,6.83204387,228.37,228.32,0.6567569]
[1738174421908,0.8171998,228.36,228.27,0.65689144]
[1738174422227,0.8171998,228.36,228.28,4.3805]
[1738174422407,0.8171998,228.36,228.29,0.65693965]
[1738174423625,2.5687998,228.36,228.27,5.03753604]
[1738174423927,2.5687998,228.36,228.26,9.5476]
[1738174423928,20.25790106,228.35,228.26,9.5476]
[1738174424226,2.5687998,228.36,228.25,8.19794306]
[1738174424227,20.25790106,228.33,228.25,8.19794306]
[1738174424599,0.8171998,228.32,228.25,8.19794306]
[1738174424904,20.25790106,228.33,228.25,8.19794306]
[1738174425099,20.25790106,228.35,228.25,8.19794306]
[1738174425303,20.28790106,228.37,228.25,8.19794306]
[1738174425597,0.03,228.37,228.29,20.0]
[1738174425801,0.03,228.37,228.3,0.6568664]
[1738174427032,20.28790106,228.37,228.28,4.3805]
[1738174427208,20.25790106,228.35,228.28,4.3805]
[1738174427404,0.8171998,228.34,228.25,3.81701544]
[1738174427608,0.8171998,228.34,228.25,8.19811544]
[1738174428104,0.8471998,228.37,228.26,0.12549]
[1738174428312,0.8471998,228.37,228.27,0.65692663]
[1738174429006,22.85660086,228.37,228.28,4.3805]
[1738174429710,20.25790106,228.36,228.28,4.3805]
[1738174430029,0.8171998,228.35,228.28,4.3805]
[1738174430328,20.25790106,228.33,228.25,3.16]
[1738174430640,0.8171998,228.35,228.26,0.65707043]
[1738174430641,21.07510086,228.35,228.26,0.65707043]
[1738174431309,20.25790106,228.34,228.25,23.16]
[1738174431504,20.25790106,228.32,228.25,0.063]
[1738174431707,0.8171998,228.31,228.25,0.063]
[1738174432039,0.8171998,228.31,228.25,4.444]
[1738174432206,0.8171998,228.32,228.25,5.10105695]
[1738174433320,20.25790106,228.32,228.25,5.10105695]
[1738174433825,20.25790106,228.32,228.25,4.444]
[1738174435107,0.03,228.34,228.26,0.65705605]
[1738174436128,0.8471998,228.34,228.26,0.65705605]
[1738174436835,21.10510086,228.34,228.27,4.3807]
[1738174437040,21.10510086,228.34,228.26,5.03795605]
[1738174437041,22.85680086,228.34,228.26,5.03795605]
[1738174437418,2.5988998,228.34,228.26,5.03795605]
[1738174438039,0.8471998,228.34,228.26,5.03795605]
[1738174440518,0.03,228.34,228.26,5.03795605]
[1738174441248,0.03,228.34,228.27,0.12549]
[1738174441450,0.03,228.34,228.29,20.0]
[1738174441741,0.03,228.34,228.3,0.65690172]
[1738174442323,0.03,228.34,228.31,4.38]
[1738174442528,0.03,228.34,228.32,0.65683051]
[1738174442936,0.03,228.34,228.33,0.12549]
[1738174444031,0.03,228.34,228.32,6.70673051]
[1738174444232,0.03,228.34,228.32,11.08633051]
[1738174445444,0.03,228.37,228.36,44.027864]
[1738174445618,0.03,228.37,228.36,20.12549]
[1738174445823,0.03,228.37,228.36,20.0]
[1738174446046,0.03,228.37,228.35,20.12549]
[1738174446235,0.03,228.37,228.36,0.6567471]
[1738174446441,0.03,228.37,228.36,5.0357471]
[1738174446746,0.03,228.37,228.36,29.3145911]